fUSD/lending_fUSD_20250211
["ID","MTS","AMOUNT","RATE_DAILY","PERIOD"]
[352704275,1739257840712,-1501.41,0.00011227,2]
[352704276,1739257840721,-885.23,0.00011227,2]
[352704277,1739257840730,-629.3,0.00011227,2]
[352704278,1739257840739,-939.81,0.00011227,2]
[352704279,1739257840749,-188.17889821,0.00011227,2]
[352704280,1739257840760,-735.378,0.00011227,2]
[352704281,1739257840770,-988.74310179,0.00011227,2]
[352704282,1739257840780,-500.0,0.00011227,2]
[352704283,1739257840788,-500.0,0.00011227,2]
[352704284,1739257840797,-1051.33,0.00011227,2]
[352704285,1739257840806,-500.0,0.00011227,2]
[352704286,1739257840814,-2388.34,0.00011227,2]
[352704287,1739257840823,-912.82,0.00011227,2]
[352704288,1739257840833,-773.13,0.00011227,2]
[352704289,1739257840842,-591.97,0.00011227,2]
[352704290,1739257840851,-1514.14,0.00011227,2]
[352704291,1739257840860,-656.42,0.00011227,2]
[352704292,1739257840869,-500.0,0.00011228,2]
[352704293,1739257840878,-500.0,0.00011228,2]
[352704294,1739257840887,-500.0,0.00011228,2]
[352704295,1739257840896,-500.0,0.00011228,2]
[352704297,1739257840905,-500.0,0.00011228,2]
[352704299,1739257840915,-500.0,0.00011228,2]
[352704301,1739257840924,-500.0,0.00011228,2]
[352704303,1739257840933,-500.0,0.00011228,2]
[352704305,1739257840942,-553.72,0.00011228,2]
[352704307,1739257840952,-752.46,0.00011228,2]
[352704309,1739257840961,-500.0,0.00011228,2]
[352704311,1739257840972,-500.0,0.00011228,2]
[352704313,1739257840982,-500.0,0.00011228,2]
[352704315,1739257840991,-500.0,0.00011228,2]
[352704317,1739257841001,-638.93,0.00011228,2]
[352704319,1739257841010,-500.0,0.00011228,2]
[352704321,1739257841019,-530.18,0.00011228,2]
[352704323,1739257841029,-500.0,0.00011228,2]
[352704325,1739257841038,-552.98,0.00011228,2]
[352704327,1739257841047,-690.71,0.00011228,2]
[352704329,1739257841056,-215.32824258,0.00011228,2]
[352704330,1739257841065,-500.0,0.00011228,2]
[352704332,1739257841074,-500.0,0.00011228,2]
[352704334,1739257841083,-655.86,0.00011228,2]
[352704336,1739257841094,-209.42526245,0.00011228,2]
[352704338,1739257841105,-609.98,0.00011228,2]
[352704363,1739257841331,-500.0,0.00011228,2]
[352704365,1739257841340,-500.0,0.00011228,2]
[352704367,1739257841349,-694.19,0.00011228,2]
[352704369,1739257841359,-687.94,0.00011228,2]
[352704371,1739257841368,-500.0,0.00011228,2]
[352704373,1739257841379,-500.0,0.00011228,2]
[352704375,1739257841392,-500.0,0.00011228,2]
[352704377,1739257841401,-500.0,0.00011228,2]
[352704379,1739257841412,-792.51,0.00011228,2]
[352704381,1739257841420,-500.0,0.00011228,2]
[352704383,1739257841429,-602.34,0.00011228,2]
[352704385,1739257841439,-500.0,0.00011228,2]
[352704387,1739257841448,-752.69,0.00011228,2]
[352704389,1739257841466,-623.23,0.00011228,2]
[352704391,1739257841475,-500.0,0.00011228,2]
[352704393,1739257841484,-500.0,0.00011228,2]
[352704395,1739257841494,-501.76302383,0.00011228,2]
[352704397,1739257841503,-659.28,0.00011228,2]
[352704399,1739257841511,-500.0,0.00011228,2]
[352704401,1739257841521,-500.0,0.00011228,2]
[352704403,1739257841529,-500.0,0.00011228,2]
[352704405,1739257841538,-500.0,0.00011228,2]
[352704407,1739257841548,-500.0,0.00011228,2]
[352704409,1739257841557,-575.57,0.00011228,2]
[352704411,1739257841566,-500.0,0.00011228,2]
[352704413,1739257841575,-500.0,0.00011228,2]
[352704415,1739257841585,-500.0,0.00011228,2]
[352704417,1739257841594,-501.61603788,0.00011228,2]
[352704419,1739257841603,-500.0,0.00011228,2]
[352704421,1739257841613,-505.93114292,0.00011228,2]
[352704423,1739257841622,-500.0,0.00011228,2]
[352704425,1739257841631,-500.0,0.00011228,2]
[352704427,1739257841640,-500.0,0.00011228,2]
[352704428,1739257841649,-500.0,0.00011228,2]
[352704431,1739257841659,-500.0,0.00011228,2]
[352704433,1739257841668,-507.63847671,0.00011228,2]
[352704434,1739257841677,-500.0,0.00011228,2]
[352704436,1739257841687,-500.0,0.00011228,2]
[352704439,1739257841697,-500.0,0.00011228,2]
[352704440,1739257841707,-500.0,0.00011228,2]
[352704442,1739257841716,-500.0,0.00011228,2]
[352704444,1739257841725,-500.0,0.00011228,2]
[352704446,1739257841734,-505.76,0.00011228,2]
[352704448,1739257841743,-500.0,0.00011228,2]
[352704451,1739257841754,-500.0,0.00011228,2]
[352704453,1739257841764,-1053.86,0.00011228,2]
[352704455,1739257841773,-500.0,0.00011228,2]
[352704457,1739257841782,-516.80677032,0.00011228,2]
[352704459,1739257841791,-352.11736281,0.00011228,2]
[352704464,1739257841837,-147.88263719,0.00011228,2]
[352704466,1739257841846,-661.06662031,0.00011228,2]
[352704469,1739257841857,-241.18337969,0.00011228,2]
[352704470,1739257841866,-500.0,0.00011228,2]
[352704471,1739257841875,-244.74662031,0.00011228,2]
[352704472,1739257841887,-130.17160873,0.00011228,2]
[352704473,1739257841896,-137.25199692,0.00011228,2]
[352704474,1739257841907,-251.72309917,0.00011228,2]
[352704475,1739257841940,-115.88551749,0.00011228,2]
[352704476,1739257841950,-500.0,0.00011228,2]
[352704477,1739257841959,-384.11448251,0.00011228,2]
[352704488,1739257843078,-115.88551749,0.00011228,2]
[352704490,1739257843087,-216.85212443,0.00011228,2]
[352704499,1739257843225,-2081.47787557,0.00011228,2]
[352704501,1739257843235,-698.72,0.00011228,2]
[352704503,1739257843244,-1442.84,0.00011228,2]
[352704505,1739257843254,-823.13,0.00011228,2]
[352704507,1739257843263,-871.8,0.00011228,2]
[352704508,1739257843272,-507.81169966,0.00011228,2]
[352704510,1739257843281,-1346.23,0.00011228,2]
[352704512,1739257843291,-500.0,0.00011228,2]
[352704514,1739257843301,-500.0,0.00011228,2]
[352704515,1739257843310,-500.0,0.00011228,2]
[352704517,1739257843319,-500.0,0.00011228,2]
[352704519,1739257843328,-500.0,0.00011228,2]
[352704521,1739257843337,-1200.99,0.00011228,2]
[352704522,1739257843347,-1220.40360357,0.00011228,2]
[352704524,1739257843358,-246.38639643,0.00011228,2]
[352704526,1739257843367,-199.23362357,0.00011228,2]
[352704532,1739257843439,-300.76637643,0.00011228,2]
[352704533,1739257843448,-80.75362357,0.00011228,2]
[352704534,1739257843460,-459.43637643,0.00011228,2]
[352704535,1739257843469,-222.39945752,0.00011228,2]
[352704536,1739257843479,-277.60054248,0.00011228,2]
[352704537,1739257843490,-1729.85,0.00011228,2]
[352704539,1739257843499,-827.18,0.00011228,2]
[352704541,1739257843508,-500.0,0.00011228,2]
[352704543,1739257843517,-500.0,0.00011228,2]
[352704545,1739257843526,-1422.55,0.00011228,2]
[352704547,1739257843536,-1647.35,0.00011228,2]
[352704549,1739257843545,-667.89,0.00011228,2]
[352704552,1739257843555,-574.73,0.00011228,2]
[352704555,1739257843564,-500.0,0.00011228,2]
[352704557,1739257843573,-3212.64,0.00011228,2]
[352704560,1739257843583,-1719.73,0.00011228,2]
[352704563,1739257843592,-857.05,0.00011228,2]
[352704566,1739257843602,-501.69776555,0.00011228,2]
[352704569,1739257843611,-3028.91,0.00011228,2]
[352704572,1739257843620,-500.0,0.00011228,2]
[352704575,1739257843630,-2715.36165816,0.00011228,2]
[352704578,1739257843641,-2352.76834184,0.00011228,2]
[352704581,1739257843651,-500.0,0.00011228,2]
[352704583,1739257843659,-1245.2,0.00011228,2]
[352704586,1739257843668,-500.0,0.00011228,2]
[352704588,1739257843678,-146.00606856,0.00011228,2]
[352704618,1739257846282,-353.99393144,0.00011228,2]
[352704619,1739257846292,-1529.26,0.00011228,2]
[352704620,1739257846301,-2489.3,0.00011228,2]
[352704621,1739257846311,-716.72,0.00011228,2]
[352704622,1739257846320,-1758.56,0.00011228,2]
[352704623,1739257846330,-2163.41,0.00011228,2]
[352704624,1739257846339,-1384.69,0.00011228,2]
[352704625,1739257846349,-500.0,0.00011228,2]
[352704626,1739257846359,-1799.3,0.00011228,2]
[352704627,1739257846369,-500.0,0.00011228,2]
[352704628,1739257846379,-584.85,0.00011228,2]
[352704629,1739257846388,-500.0,0.00011228,2]
[352704630,1739257846397,-1213.41,0.00011228,2]
[352704631,1739257846407,-737.28,0.00011228,2]
[352704632,1739257846417,-500.0,0.00011228,2]
[352704633,1739257846426,-2545.85,0.00011228,2]
[352704634,1739257846435,-521.44,0.00011228,2]
[352704635,1739257846444,-975.39698264,0.00011228,2]
[352704636,1739257846456,-513.34301736,0.00011228,2]
[352704637,1739257846465,-591.13,0.00011228,2]
[352704638,1739257846475,-256.08525174,0.00011228,2]
[352704639,1739257846485,-243.91474826,0.00011228,2]
[352704640,1739257846494,-601.95,0.00011228,2]
[352704641,1739257846503,-1066.73,0.00011228,2]
[352704642,1739257846512,-88.05367349,0.00011228,2]
[352704643,1739257846525,-484.3126053,0.00011228,2]
[352704644,1739257846576,-1729.37372121,0.00011228,2]
[352704645,1739257846585,-1649.94,0.00011228,2]
[352704647,1739257846595,-500.0,0.00011228,2]
[352704649,1739257846605,-500.0,0.00011228,2]
[352704651,1739257846614,-136.37367349,0.00011228,2]
[352704655,1739258165207,6094.1609,8.973e-05,2]
[352704658,1739258474037,-4320.7209,8.836e-05,2]
[352704659,1739258506655,-1884.6443,8.973e-05,2]
[352704663,1739258749998,776.11,8.219e-05,2]
[352704664,1739258754030,1276.84210301,6.94e-05,2]
[352704665,1739258765786,1030.60617421,8e-05,2]
[352704672,1739258886992,945.39631469,8.8e-05,2]
[352704681,1739258999962,-150.0,9.716e-05,2]
[352704682,1739258999989,-1000.0,9.921e-05,2]
[352704683,1739259000016,-150.0,9.975e-05,2]
[352704684,1739259000042,-13700.0,9.989e-05,2]
[352704696,1739259032299,-320.74855862,9.905e-05,2]
[352704698,1739259032308,-685.16282156,9.989e-05,2]
[352704704,1739259032446,-9514.83717844,9.989e-05,2]
[352704705,1739259032456,-150.0,9.994e-05,2]
[352704706,1739259032467,-150.0,9.999e-05,2]
[352704707,1739259032476,-150.0,9.999e-05,2]
[352704708,1739259032485,-169.63826288,9.999e-05,2]
[352704709,1739259032495,-80051.18928697,0.0001,2]
[352704710,1739259032505,-427.6411552,0.0001,2]
[352704711,1739259032589,-1832.1416959,0.0001,2]
[352704712,1739259032605,-1859.46357618,0.0001,2]
[352704713,1739259032616,-706.29087696,0.0001,2]
[352704714,1739259032675,-18221.61434508,0.0001,2]
[352704715,1739259032684,-196.42083815,0.0001,2]
[352704716,1739259032693,-53199.4608556,0.0001,2]
[352704717,1739259032702,-432729.4339611,0.0001,2]
[352704718,1739259032720,-898.408,0.0001,2]
[352704719,1739259032731,-912.26201413,0.0001,2]
[352704720,1739259032742,-300.0,0.0001,2]
[352704721,1739259032761,-13580.86654249,0.0001,2]
[352704722,1739259032772,-29896.7172,0.0001,2]
[352704723,1739259032783,-7934.43106463,0.0001,2]
[352704724,1739259032794,-6515.385521,0.0001,2]
[352704730,1739259032886,-2010.06740946,0.0001,2]
[352704735,1739259032920,-2044.17048353,0.0001,2]
[352704923,1739259038232,-393.01182328,0.0001,2]
[352704929,1739259038611,-2738.46758266,0.0001,2]
[352704932,1739259038623,-633.29988076,0.0001,2]
[352704934,1739259038635,-3261.41321144,0.0001,2]
[352704936,1739259038646,-499.69610402,0.0001,2]
[352705079,1739259040487,-2233.95358304,0.0001,2]
[352705080,1739259040497,-250.0,0.00010005,2]
[352705081,1739259040506,-150.0,0.0001006,2]
[352705082,1739259040515,-150.0,0.0001006,2]
[352705083,1739259040525,-216.04641696,0.00010137,2]
[352705124,1739259046524,-71.26358304,0.00010137,2]
[352705125,1739259046537,-699.65,0.00010145,2]
[352705126,1739259046547,-168.43,0.00010147,2]
[352705127,1739259046557,-216.9848237,0.0001015,2]
[352705128,1739259046569,-13.6451763,0.0001015,2]
[352705129,1739259046581,-150.0,0.0001022,2]
[352705130,1739259046591,-511.3893837,0.0001029,2]
[352705132,1739259096527,811.2858,8.119e-05,2]
[352705133,1739259191586,1541.7099,8.256e-05,2]
[352705136,1739259298988,-1100.0,8.836e-05,2]
[352705142,1739259305238,-10844.4659,8.836e-05,2]
[352705145,1739259339332,160.05,7.955e-05,2]
[352705146,1739259438412,699.95,8.836e-05,2]
[352705147,1739259488899,-6718.5023,8.836e-05,2]
[352705150,1739259727592,165.44,7.708e-05,2]
[352705159,1739259958059,768.52,8.219e-05,2]
[352705160,1739260153042,-150.0,9.17e-05,2]
[352705161,1739260153067,-1000.0,9.196e-05,2]
[352705162,1739260153092,-300.0,9.211e-05,2]
[352705163,1739260153117,-23237.39,9.212e-05,2]
[352705164,1739260153141,-2312.61,9.245e-05,2]
[352705174,1739260232592,-30.53,9.245e-05,2]
[352705175,1739260232602,-150.0,9.263e-05,2]
[352705176,1739260232611,-160.05,9.281e-05,2]
[352705177,1739260232620,-57.34779334,9.471e-05,2]
[352705178,1739260232661,-110.20220666,9.471e-05,2]
[352705179,1739260232670,-325.48,9.637e-05,2]
[352705180,1739260232679,-64.31779334,9.637e-05,2]
[352705181,1739260232755,-99.84220666,9.637e-05,2]
[352705182,1739260232765,-325.48,9.639e-05,2]
[352705183,1739260232774,-325.48,9.642e-05,2]
[352705184,1739260232783,-325.48,9.644e-05,2]
[352705185,1739260232798,-116.25708251,9.647e-05,2]
[352705186,1739260232809,-209.22291749,9.647e-05,2]
[352705187,1739260232818,-325.48,9.649e-05,2]
[352705188,1739260232828,-44.66061445,9.652e-05,2]
[352705189,1739260232847,-280.81938555,9.652e-05,2]
[352705190,1739260232856,-325.48,9.655e-05,2]
[352705191,1739260232866,-325.48,9.657e-05,2]
[352705192,1739260232874,-325.48,9.66e-05,2]
[352705193,1739260232883,-325.48,9.662e-05,2]
[352705194,1739260232893,-325.48,9.665e-05,2]
[352705195,1739260232903,-325.48,9.667e-05,2]
[352705196,1739260232912,-325.48,9.67e-05,2]
[352705197,1739260232921,-165.34,9.67e-05,2]
[352705198,1739260232931,-325.48,9.672e-05,2]
[352705199,1739260232940,-325.48,9.675e-05,2]
[352705200,1739260232949,-325.48,9.677e-05,2]
[352705201,1739260232959,-325.48,9.68e-05,2]
[352705202,1739260232974,-325.48,9.683e-05,2]
[352705203,1739260232983,-150.0,9.685e-05,2]
[352705204,1739260232992,-325.48,9.685e-05,2]
[352705205,1739260233002,-300.0,9.743e-05,2]
[352705206,1739260233013,-1526.21,9.803e-05,2]
[352705207,1739260233023,-250.0,9.803e-05,2]
[352705208,1739260233032,-677.34,9.949e-05,2]
[352705209,1739260233042,-150.0,9.95e-05,2]
[352705210,1739260233053,-500.0,0.00010016,2]
[352705211,1739260233063,-679.81,0.00010058,2]
[352705212,1739260233073,-150.0,0.0001006,2]
[352705213,1739260233083,-150.0,0.0001006,2]
[352705214,1739260233092,-150.0,0.00010087,2]
[352705215,1739260233102,-208.11,0.00010137,2]
[352705216,1739260233111,-163.51,0.00010161,2]
[352705217,1739260233121,-150.0,0.00010169,2]
[352705218,1739260233132,-4000.0,0.0001023,2]
[352705219,1739260233142,-150.0,0.00010284,2]
[352705220,1739260233151,-200.0,0.0001029,2]
[352705221,1739260233161,-200.0,0.0001029,2]
[352705222,1739260233171,-3102.0,0.000103,3]
[352705223,1739260233180,-1000.0,0.00010345,2]
[352705224,1739260233190,-173.02,0.00010352,2]
[352705225,1739260233200,-4000.0,0.0001036,2]
[352705226,1739260233210,-200.0,0.00010393,2]
[352705227,1739260233220,-985.27,0.000104,2]
[352705228,1739260233230,-768.52,0.00010434,2]
[352705229,1739260233239,-200.0,0.00010497,2]
[352705230,1739260233248,-150.0,0.00010507,2]
[352705231,1739260233258,-431.70188548,0.00010519,2]
[352705232,1739260233267,-4000.0,0.0001052,2]
[352705233,1739260233277,-160.05,0.00010607,2]
[352705234,1739260233286,-150.0,0.00010619,2]
[352705235,1739260233296,-500.0,0.0001063,2]
[352705236,1739260233306,-255.0,0.00010654,2]
[352705237,1739260233315,-161.24,0.00010659,2]
[352705238,1739260233331,-4000.0,0.0001068,2]
[352705239,1739260233341,-5554.0,0.000107,5]
[352705240,1739260233351,-150.0,0.00010731,2]
[352705241,1739260233361,-431.70188548,0.00010808,2]
[352705242,1739260233372,-4000.0,0.0001083,2]
[352705243,1739260233381,-159.8119943,0.000109,2]
[352705244,1739260233391,-173.02,0.00010922,2]
[352705245,1739260233402,-1000.0,0.00010949,2]
[352705246,1739260233411,-150.0,0.00010955,2]
[352705247,1739260233421,-611.184054,0.00010958,2]
[352705248,1739260233431,-160.004794,0.00010958,2]
[352705249,1739260233441,-156.680195,0.00010958,2]
[352705250,1739260233450,-504.202692,0.00010958,2]
[352705251,1739260233460,-268.358353,0.00010958,2]
[352705252,1739260233470,-358.74458182,0.00010958,2]
[352705253,1739260233479,-500.0,0.00010958,2]
[352705254,1739260233489,-55.87663805,0.00010958,2]
[352705255,1739260233524,-444.12336195,0.00010958,2]
[352705256,1739260233534,-507.40665904,0.00010958,2]
[352705257,1739260233544,-500.0,0.00010958,2]
[352705258,1739260233554,-500.0,0.00010958,2]
[352705259,1739260233564,-584.3090007,0.00010958,2]
[352705260,1739260233574,-500.0,0.00010958,2]
[352705261,1739260233585,-99.39842316,0.00010958,2]
[352705272,1739260238483,-259.18645914,0.00010958,2]
[352705273,1739260238497,-240.81354086,0.00010958,2]
[352705274,1739260238508,-500.0,0.00010958,2]
[352705275,1739260238519,-503.30826661,0.00010958,2]
[352705276,1739260238529,-500.0,0.00010958,2]
[352705277,1739260238540,-500.0,0.00010958,2]
[352705278,1739260238551,-511.98824403,0.00010958,2]
[352705279,1739260238562,-500.0,0.00010958,2]
[352705280,1739260238573,-510.34030531,0.00010958,2]
[352705281,1739260238584,-500.0,0.00010958,2]
[352705282,1739260238596,-501.96399597,0.00010958,2]
[352705283,1739260238606,-503.09021987,0.00010958,2]
[352705285,1739260238617,-500.0,0.00010958,2]
[352705286,1739260238628,-500.0,0.00010958,2]
[352705288,1739260238640,-500.0,0.00010958,2]
[352705291,1739260238651,-500.0,0.00010958,2]
[352705293,1739260238662,-500.0,0.00010958,2]
[352705295,1739260238673,-500.0,0.00010958,2]
[352705297,1739260238683,-500.0,0.00010958,2]
[352705299,1739260238694,-501.91156782,0.00010958,2]
[352705300,1739260238705,-500.0,0.00010958,2]
[352705301,1739260238717,-495.64512623,0.00010958,2]
[352705302,1739260238732,-5.40690361,0.00010958,2]
[352705303,1739260238744,-505.8029458,0.00010958,2]
[352705304,1739260238756,-500.0,0.00010958,2]
[352705305,1739260238767,-500.0,0.00010958,2]
[352705306,1739260238779,-500.0,0.00010958,2]
[352705307,1739260238791,-500.0,0.00010958,2]
[352705308,1739260238802,-500.0,0.00010958,2]
[352705309,1739260238814,-500.0,0.00010958,2]
[352705310,1739260238826,-500.0,0.00010958,2]
[352705311,1739260238837,-500.0,0.00010958,2]
[352705312,1739260238848,-500.0,0.00010958,2]
[352705313,1739260238859,-500.0,0.00010958,2]
[352705314,1739260238871,-512.75248426,0.00010958,2]
[352705315,1739260238882,-501.78996538,0.00010958,2]
[352705316,1739260238893,-503.47537529,0.00010958,2]
[352705317,1739260238904,-500.0,0.00010958,2]
[352705318,1739260238915,-502.3415292,0.00010958,2]
[352705319,1739260238926,-503.9986529,0.00010958,2]
[352705320,1739260238937,-500.0,0.00010958,2]
[352705321,1739260238948,-502.02628879,0.00010958,2]
[352705322,1739260238959,-500.0,0.00010958,2]
[352705323,1739260238975,-500.0,0.00010958,2]
[352705324,1739260238986,-500.0,0.00010958,2]
[352705325,1739260238997,-501.0966918,0.00010958,2]
[352705326,1739260239008,-390.43172297,0.00010958,2]
[352705327,1739260239024,-117.55393012,0.00010958,2]
[352705328,1739260239035,-502.39545389,0.00010958,2]
[352705329,1739260239049,-500.0,0.00010958,2]
[352705330,1739260239060,-502.4225134,0.00010958,2]
[352705331,1739260239071,-500.0,0.00010958,2]
[352705332,1739260239082,-500.0,0.00010958,2]
[352705333,1739260239093,-296.45168327,0.00010958,2]
[352705334,1739260239104,-500.0,0.00010958,2]
[352705335,1739260239114,-500.0,0.00010958,2]
[352705336,1739260239125,-500.0,0.00010958,2]
[352705337,1739260239136,-500.0,0.00010958,2]
[352705338,1739260239147,-554.64777577,0.00010958,2]
[352705339,1739260239157,-460.94996555,0.00010958,2]
[352705340,1739260239172,-39.05003445,0.00010958,2]
[352705341,1739260239183,-500.0,0.00010958,2]
[352705342,1739260239195,-500.0,0.00010958,2]
[352705343,1739260239205,-501.86749595,0.00010958,2]
[352705344,1739260239217,-502.73444326,0.00010958,2]
[352705345,1739260239228,-500.0,0.00010958,2]
[352705346,1739260239239,-500.0,0.00010958,2]
[352705347,1739260239250,-500.0,0.00010958,2]
[352705348,1739260239262,-500.0,0.00010958,2]
[352705349,1739260239273,-507.2575464,0.00010958,2]
[352705350,1739260239284,-500.0,0.00010958,2]
[352705351,1739260239294,-500.0,0.00010958,2]
[352705352,1739260239305,-500.0,0.00010958,2]
[352705353,1739260239316,-500.0,0.00010958,2]
[352705354,1739260239327,-500.0,0.00010958,2]
[352705355,1739260239338,-500.0,0.00010958,2]
[352705356,1739260239349,-500.0,0.00010958,2]
[352705357,1739260239359,-500.0,0.00010958,2]
[352705358,1739260239370,-500.0,0.00010958,2]
[352705359,1739260239381,-500.0,0.00010958,2]
[352705360,1739260239392,-503.69616319,0.00010958,2]
[352705361,1739260239402,-500.0,0.00010958,2]
[352705362,1739260239413,-504.16588348,0.00010958,2]
[352705363,1739260239423,-500.0,0.00010958,2]
[352705364,1739260239434,-500.0,0.00010958,2]
[352705365,1739260239445,-450.85354458,0.00010958,2]
[352705366,1739260239460,-39.68021557,0.00010958,2]
[352705367,1739260239470,-500.0,0.00010958,2]
[352705368,1739260239482,-500.0,0.00010958,2]
[352705369,1739260239492,-500.0,0.00010958,2]
[352705370,1739260239502,-500.0,0.00010958,2]
[352705371,1739260239513,-500.0,0.00010958,2]
[352705372,1739260239524,-223.85196527,0.00010958,2]
[352705375,1739260240672,-280.53262511,0.00010958,2]
[352705376,1739260240682,-500.0,0.00010958,2]
[352705377,1739260240692,-476.06737489,0.00010958,2]
[352705378,1739260240708,-27.85534511,0.00010958,2]
[352705379,1739260240717,-500.0,0.00010958,2]
[352705380,1739260240728,-503.36919387,0.00010958,2]
[352705381,1739260240738,-500.0,0.00010958,2]
[352705382,1739260240748,-440.31616904,0.00010958,2]
[352705383,1739260240760,-61.21735273,0.00010958,2]
[352705384,1739260240773,-500.0,0.00010958,2]
[352705385,1739260240783,-264.5790856,0.00010958,2]
[352705386,1739260240795,-236.30075489,0.00010958,2]
[352705387,1739260240805,-500.0,0.00010958,2]
[352705388,1739260240815,-501.58608557,0.00010958,2]
[352705389,1739260240825,-500.0,0.00010958,2]
[352705390,1739260240834,-505.03824587,0.00010958,2]
[352705391,1739260240844,-500.0,0.00010958,2]
[352705392,1739260240854,-500.0,0.00010958,2]
[352705393,1739260240864,-500.0,0.00010958,2]
[352705394,1739260240874,-500.0,0.00010958,2]
[352705395,1739260240883,-500.0,0.00010958,2]
[352705396,1739260240893,-500.0,0.00010958,2]
[352705397,1739260240902,-500.0,0.00010958,2]
[352705399,1739260240911,-500.0,0.00010958,2]
[352705401,1739260240921,-502.37849685,0.00010958,2]
[352705403,1739260240930,-500.0,0.00010958,2]
[352705405,1739260240939,-500.0,0.00010958,2]
[352705406,1739260240949,-500.0,0.00010958,2]
[352705407,1739260240958,-500.0,0.00010958,2]
[352705408,1739260240972,-500.0,0.00010958,2]
[352705409,1739260240982,-500.0,0.00010958,2]
[352705410,1739260240991,-102.69641682,0.00010958,2]
[352705414,1739260241126,-397.30358318,0.00010958,2]
[352705415,1739260241137,-502.8004228,0.00010958,2]
[352705416,1739260241152,-500.0,0.00010958,2]
[352705417,1739260241161,-500.0,0.00010958,2]
[352705418,1739260241177,-598.05989894,0.00010958,2]
[352705419,1739260241187,-500.0,0.00010958,2]
[352705420,1739260241196,-500.0,0.00010958,2]
[352705421,1739260241206,-500.0,0.00010958,2]
[352705422,1739260241215,-500.0,0.00010958,2]
[352705423,1739260241225,-500.0,0.00010958,2]
[352705424,1739260241234,-500.0,0.00010958,2]
[352705425,1739260241243,-500.0,0.00010958,2]
[352705426,1739260241253,-388.99443346,0.00010958,2]
[352705427,1739260241317,-111.00556654,0.00010958,2]
[352705428,1739260241326,-503.18043211,0.00010958,2]
[352705429,1739260241336,-500.0,0.00010958,2]
[352705430,1739260241345,-290.12099607,0.00010958,2]
[352705451,1739260243596,-209.87900393,0.00010958,2]
[352705452,1739260243607,-500.0,0.00010958,2]
[352705453,1739260243617,-504.91759875,0.00010958,2]
[352705454,1739260243627,-500.0,0.00010958,2]
[352705455,1739260243637,-500.0,0.00010958,2]
[352705456,1739260243647,-500.91709626,0.00010958,2]
[352705457,1739260243658,-500.0,0.00010958,2]
[352705458,1739260243668,-500.0,0.00010958,2]
[352705459,1739260243678,-501.96969663,0.00010958,2]
[352705460,1739260243688,-500.0,0.00010958,2]
[352705461,1739260243698,-502.54514172,0.00010958,2]
[352705462,1739260243708,-500.0,0.00010958,2]
[352705463,1739260243717,-500.0,0.00010958,2]
[352705464,1739260243727,-500.0,0.00010958,2]
[352705465,1739260243737,-500.0,0.00010958,2]
[352705466,1739260243746,-500.18921385,0.00010958,2]
[352705467,1739260243756,-502.13033844,0.00010958,2]
[352705468,1739260243765,-500.0,0.00010958,2]
[352705469,1739260243775,-500.0,0.00010958,2]
[352705470,1739260243784,-503.93838696,0.00010958,2]
[352705471,1739260243794,-334.71353316,0.00010958,2]
[352705472,1739260243876,-166.29174025,0.00010958,2]
[352705473,1739260243886,-502.20209436,0.00010958,2]
[352705474,1739260243896,-500.0,0.00010958,2]
[352705475,1739260243905,-500.0,0.00010958,2]